[Event "*** Titled Tuesday Blitz"]
[Site "Chess.com"]
[Date "2020.10.20"]
[Round "3"]
[White "catzapto"]
[Black "Ajedrez_con_German"]
[Result "0-1"]
[WhiteElo "2154"]
[BlackElo "2457"]
[TimeControl "180+1"]
[EndTime "10:30:03 PDT"]
[Termination "Ajedrez_con_German won by checkmate"]

1. e4 {[%clk 0:03:00.9]} 1... e6 {[%clk 0:02:58.7]} 2. d4 {[%clk 0:03:00.7]}
2... d5 {[%clk 0:02:58.3]} 3. Nd2 {[%clk 0:03:00.9]} 3... c5 {[%clk 0:02:43.2]}
4. exd5 {[%clk 0:02:55.6]} 4... Qxd5 {[%clk 0:02:42.9]} 5. Ngf3 {[%clk
0:02:48.5]} 5... cxd4 {[%clk 0:02:42.9]} 6. Bc4 {[%clk 0:02:40.5]} 6... Qd7
{[%clk 0:02:41.8]} 7. Nb3 {[%clk 0:02:35.1]} 7... Nc6 {[%clk 0:02:39.8]} 8.
Nbxd4 {[%clk 0:02:24.6]} 8... Nxd4 {[%clk 0:02:39.6]} 9. Qxd4 {[%clk 0:02:24.8]}
9... Qxd4 {[%clk 0:02:21.9]} 10. Nxd4 {[%clk 0:02:24.2]} 10... a6 {[%clk
0:02:22]} 11. O-O {[%clk 0:02:18.9]} 11... Bd7 {[%clk 0:02:19.5]} 12. Be3 {[%clk
0:02:11.3]} 12... Ne7 {[%clk 0:02:17.1]} 13. Rad1 {[%clk 0:02:08.2]} 13... Rc8
{[%clk 0:02:13.4]} 14. Bb3 {[%clk 0:02:03.2]} 14... Nc6 {[%clk 0:02:10.2]} 15.
c3 {[%clk 0:01:49.9]} 15... Be7 {[%clk 0:02:00.7]} 16. f4 {[%clk 0:01:31.6]}
16... Na5 {[%clk 0:01:37.5]} 17. f5 {[%clk 0:01:23]} 17... Nxb3 {[%clk
0:01:35.6]} 18. axb3 {[%clk 0:01:22.4]} 18... e5 {[%clk 0:01:32]} 19. Nf3 {[%clk
0:01:17.7]} 19... f6 {[%clk 0:01:31.2]} 20. Nd2 {[%clk 0:01:11.3]} 20... Kf7
{[%clk 0:01:21.9]} 21. Nc4 {[%clk 0:01:11.5]} 21... Bb5 {[%clk 0:01:19.6]} 22.
Nb6 {[%clk 0:00:55.2]} 22... Bxf1 {[%clk 0:00:42.8]} 23. Nxc8 {[%clk 0:00:54.5]}
23... Be2 {[%clk 0:00:39.6]} 24. Rd2 {[%clk 0:00:53.1]} 24... Rxc8 {[%clk
0:00:38.2]} 25. Rxe2 {[%clk 0:00:52.5]} 25... Bc5 {[%clk 0:00:37]} 26. Kf2
{[%clk 0:00:51]} 26... Ke7 {[%clk 0:00:35.1]} 27. g4 {[%clk 0:00:47.1]} 27...
Bxe3+ {[%clk 0:00:31.6]} 28. Kxe3 {[%clk 0:00:38.2]} 28... Rd8 {[%clk
0:00:32.5]} 29. h4 {[%clk 0:00:30.5]} 29... Rd1 {[%clk 0:00:29.6]} 30. Rh2
{[%clk 0:00:11.8]} 30... Rg1 {[%clk 0:00:22]} 31. Kf3 {[%clk 0:00:10.8]} 31...
Rf1+ {[%clk 0:00:21.4]} 32. Ke3 {[%clk 0:00:11]} 32... Rf4 {[%clk 0:00:20.3]}
33. Rg2 {[%clk 0:00:08.3]} 33... a5 {[%clk 0:00:18.5]} 34. Ke2 {[%clk
0:00:03.1]} 34... b6 {[%clk 0:00:17.2]} 35. Ke3 {[%clk 0:00:03.6]} 35... Rf1
{[%clk 0:00:16.8]} 36. Rh2 {[%clk 0:00:02]} 36... h6 {[%clk 0:00:14.5]} 37. Rg2
{[%clk 0:00:01.9]} 37... Rf4 {[%clk 0:00:13.3]} 38. Ke2 {[%clk 0:00:01.2]} 38...
Kd6 {[%clk 0:00:13.4]} 39. Ke3 {[%clk 0:00:01.8]} 39... Kc5 {[%clk 0:00:13.5]}
40. Rg3 {[%clk 0:00:02.4]} 40... b5 {[%clk 0:00:11.3]} 41. Rg2 {[%clk
0:00:03.3]} 41... a4 {[%clk 0:00:11.4]} 42. bxa4 {[%clk 0:00:03.3]} 42... bxa4
{[%clk 0:00:12.3]} 43. Rg3 {[%clk 0:00:03.9]} 43... Kc4 {[%clk 0:00:12.6]} 44.
Rg2 {[%clk 0:00:03.6]} 44... Kb3 {[%clk 0:00:12.7]} 45. g5 {[%clk 0:00:03.9]}
45... hxg5 {[%clk 0:00:11.7]} 46. hxg5 {[%clk 0:00:04.8]} 46... Rxf5 {[%clk
0:00:12.2]} 47. gxf6 {[%clk 0:00:05.3]} 47... gxf6 {[%clk 0:00:13.1]} 48. Ke4
{[%clk 0:00:05.8]} 48... Rf4+ {[%clk 0:00:13.2]} 49. Kd5 {[%clk 0:00:06.7]}
49... a3 {[%clk 0:00:12.4]} 50. bxa3 {[%clk 0:00:06.6]} 50... Kxc3 {[%clk
0:00:12.9]} 51. a4 {[%clk 0:00:06.7]} 51... Rxa4 {[%clk 0:00:12.1]} 52. Ke6
{[%clk 0:00:07.6]} 52... Rf4 {[%clk 0:00:11.4]} 53. Rg6 {[%clk 0:00:07.1]} 53...
e4 {[%clk 0:00:10.5]} 54. Rg8 {[%clk 0:00:07.4]} 54... e3 {[%clk 0:00:10]} 55.
Re8 {[%clk 0:00:07.6]} 55... Kd2 {[%clk 0:00:08.8]} 56. Kd5 {[%clk 0:00:06.9]}
56... e2 {[%clk 0:00:08.4]} 57. Rd8 {[%clk 0:00:06.5]} 57... e1=Q {[%clk
0:00:07.8]} 58. Kc5+ {[%clk 0:00:07.4]} 58... Ke2 {[%clk 0:00:08.2]} 59. Re8+
{[%clk 0:00:07.4]} 59... Kf2 {[%clk 0:00:08.5]} 60. Rh8 {[%clk 0:00:07.4]} 60...
Qe5+ {[%clk 0:00:07.9]} 61. Kc6 {[%clk 0:00:07.3]} 61... Rc4+ {[%clk 0:00:08.1]}
62. Kd7 {[%clk 0:00:08.2]} 62... Rc7+ {[%clk 0:00:07.6]} 63. Kd8 {[%clk
0:00:09.1]} 63... Qe7# {[%clk 0:00:08.1]} 0-1

[Event "*** Titled Tuesday Blitz"]
[Site "Chess.com"]
[Date "2020.10.20"]
[Round "3"]
[White "Arfan48"]
[Black "FMJoseHerrera"]
[Result "1-0"]
[WhiteElo "2381"]
[BlackElo "2531"]
[TimeControl "180+1"]
[EndTime "10:30:05 PDT"]
[Termination "Arfan48 won on time"]

1. e4 {[%clk 0:03:00.9]} 1... c5 {[%clk 0:02:58.6]} 2. Nf3 {[%clk 0:03:00.8]}
2... e6 {[%clk 0:02:57.7]} 3. d4 {[%clk 0:03:01.2]} 3... cxd4 {[%clk 0:02:58.3]}
4. Nxd4 {[%clk 0:03:02.1]} 4... a6 {[%clk 0:02:58.8]} 5. c4 {[%clk 0:03:02.4]}
5... Qc7 {[%clk 0:02:58.5]} 6. Nc3 {[%clk 0:03:02.4]} 6... b6 {[%clk 0:02:58.8]}
7. Qd3 {[%clk 0:03:02.5]} 7... Bb7 {[%clk 0:02:59]} 8. Qg3 {[%clk 0:03:03]} 8...
d6 {[%clk 0:02:58.9]} 9. Be2 {[%clk 0:02:48.9]} 9... Nf6 {[%clk 0:02:55.9]} 10.
f3 {[%clk 0:02:48.2]} 10... Nbd7 {[%clk 0:02:55.6]} 11. Be3 {[%clk 0:02:37]}
11... h5 {[%clk 0:02:54.4]} 12. O-O {[%clk 0:02:35.4]} 12... h4 {[%clk
0:02:54.6]} 13. Qf2 {[%clk 0:02:35.3]} 13... h3 {[%clk 0:02:53.9]} 14. g4 {[%clk
0:02:33]} 14... Be7 {[%clk 0:02:54.3]} 15. Rac1 {[%clk 0:02:30.2]} 15... Rc8
{[%clk 0:02:47.8]} 16. Nd5 {[%clk 0:01:59.6]} 16... exd5 {[%clk 0:02:29.2]} 17.
cxd5 {[%clk 0:01:59.4]} 17... Qb8 {[%clk 0:02:27.8]} 18. Nf5 {[%clk 0:01:57]}
18... g6 {[%clk 0:02:09.8]} 19. Nxe7 {[%clk 0:01:56.5]} 19... Kxe7 {[%clk
0:02:10.7]} 20. Bd4 {[%clk 0:01:55.6]} 20... Ne5 {[%clk 0:01:58.1]} 21. g5
{[%clk 0:01:18]} 21... Nfd7 {[%clk 0:01:32.5]} 22. f4 {[%clk 0:01:18]} 22...
Rxc1 {[%clk 0:01:33.1]} 23. Rxc1 {[%clk 0:01:15.7]} 23... Rc8 {[%clk 0:01:34]}
24. Rf1 {[%clk 0:00:33.8]} 24... Nc4 {[%clk 0:01:29]} 25. f5 {[%clk 0:00:33.5]}
25... Rf8 {[%clk 0:01:23.3]} 26. Bxc4 {[%clk 0:00:30]} 26... Ne5 {[%clk
0:01:17.1]} 27. Bxe5 {[%clk 0:00:29.5]} 27... dxe5 {[%clk 0:01:18]} 28. Qxb6
{[%clk 0:00:30]} 28... gxf5 {[%clk 0:00:59.6]} 29. Rxf5 {[%clk 0:00:25.4]} 29...
Qc8 {[%clk 0:00:59.3]} 30. b3 {[%clk 0:00:20.6]} 30... Re8 {[%clk 0:00:42.1]}
31. Rxe5+ {[%clk 0:00:20.8]} 31... Kf8 {[%clk 0:00:42.5]} 32. Rxe8+ {[%clk
0:00:20.9]} 32... Kxe8 {[%clk 0:00:43.2]} 33. Qf2 {[%clk 0:00:11.5]} 33... Qg4+
{[%clk 0:00:43.2]} 34. Qg3 {[%clk 0:00:11.7]} 34... Qd1+ {[%clk 0:00:43.1]} 35.
Kf2 {[%clk 0:00:12.2]} 35... Qd2+ {[%clk 0:00:42.6]} 36. Kf3 {[%clk 0:00:12]}
36... Bc8 {[%clk 0:00:41.4]} 37. g6 {[%clk 0:00:08.9]} 37... Qd1+ {[%clk
0:00:40.5]} 38. Kf4 {[%clk 0:00:08.5]} 38... fxg6 {[%clk 0:00:16.3]} 39. Qxg6+
{[%clk 0:00:08.1]} 39... Ke7 {[%clk 0:00:17.2]} 40. Qg5+ {[%clk 0:00:08.1]}
40... Kd6 {[%clk 0:00:16.7]} 41. Qd8+ {[%clk 0:00:08.2]} 41... Bd7 {[%clk
0:00:14.8]} 42. Qb8+ {[%clk 0:00:08.3]} 42... Ke7 {[%clk 0:00:14.9]} 43. Qe5+
{[%clk 0:00:08.3]} 43... Kd8 {[%clk 0:00:14.7]} 44. Qg5+ {[%clk 0:00:08.1]}
44... Kc7 {[%clk 0:00:14.5]} 45. Qg3 {[%clk 0:00:08.5]} 45... Qd2+ {[%clk
0:00:14.1]} 46. Ke5 {[%clk 0:00:08]} 46... Qc3+ {[%clk 0:00:13.9]} 47. Kf4
{[%clk 0:00:08.2]} 47... Qd2+ {[%clk 0:00:14.5]} 48. Kf3+ {[%clk 0:00:08.7]}
48... Kd8 {[%clk 0:00:14.5]} 49. Qb8+ {[%clk 0:00:08.4]} 49... Ke7 {[%clk
0:00:14.9]} 50. Qe5+ {[%clk 0:00:09]} 50... Kd8 {[%clk 0:00:15.2]} 51. d6 {[%clk
0:00:09.4]} 51... Qd1+ {[%clk 0:00:14.8]} 52. Kf4 {[%clk 0:00:09.3]} 52... Qd2+
{[%clk 0:00:14.6]} 53. Kf3 {[%clk 0:00:07.2]} 53... Qd1+ {[%clk 0:00:13]} 54.
Ke3 {[%clk 0:00:07.5]} 54... Qe1+ {[%clk 0:00:12.4]} 55. Kd3 {[%clk 0:00:05.2]}
55... Qd1+ {[%clk 0:00:11.2]} 56. Ke3 {[%clk 0:00:05.3]} 56... Qe1+ {[%clk
0:00:11.4]} 57. Be2 {[%clk 0:00:05.5]} 57... Qg1+ {[%clk 0:00:11.7]} 58. Kd2
{[%clk 0:00:05.1]} 58... Qxh2 {[%clk 0:00:10.2]} 59. Qxh2 {[%clk 0:00:04.8]} 1-0

[Event "*** Titled Tuesday Blitz"]
[Site "Chess.com"]
[Date "2020.10.20"]
[Round "3"]
[White "Lion-Al-Messi"]
[Black "K_A_S_T_O_R"]
[Result "1-0"]
[WhiteElo "2577"]
[BlackElo "2820"]
[TimeControl "180+1"]
[EndTime "10:30:07 PDT"]
[Termination "Lion-Al-Messi won by checkmate"]

1. d4 {[%clk 0:03:00.4]} 1... Nf6 {[%clk 0:02:58.7]} 2. Nf3 {[%clk 0:03:00.8]}
2... e6 {[%clk 0:02:52.9]} 3. Nc3 {[%clk 0:03:01.2]} 3... d5 {[%clk 0:02:48.6]}
4. Bg5 {[%clk 0:03:01.1]} 4... Bb4 {[%clk 0:02:48]} 5. e3 {[%clk 0:03:01.5]}
5... Nbd7 {[%clk 0:02:42]} 6. Bd3 {[%clk 0:03:01.6]} 6... c5 {[%clk 0:02:41.1]}
7. O-O {[%clk 0:03:00.9]} 7... Bxc3 {[%clk 0:02:33.7]} 8. bxc3 {[%clk
0:03:00.7]} 8... c4 {[%clk 0:02:34]} 9. Be2 {[%clk 0:03:00.9]} 9... Qa5 {[%clk
0:02:33.9]} 10. Ne5 {[%clk 0:02:36.9]} 10... Ne4 {[%clk 0:02:32.9]} 11. Bf4
{[%clk 0:02:32.6]} 11... Nxc3 {[%clk 0:02:18.9]} 12. Qe1 {[%clk 0:02:32.6]}
12... Nxe2+ {[%clk 0:02:15.9]} 13. Qxe2 {[%clk 0:02:33.5]} 13... Nf6 {[%clk
0:02:11.2]} 14. Ng4 {[%clk 0:02:21]} 14... Nd7 {[%clk 0:02:03.8]} 15. Rfb1
{[%clk 0:02:14.9]} 15... O-O {[%clk 0:02:01.1]} 16. Qf3 {[%clk 0:02:10.8]} 16...
Qd8 {[%clk 0:01:41.7]} 17. Qg3 {[%clk 0:02:09.9]} 17... Kh8 {[%clk 0:01:39.4]}
18. Bd6 {[%clk 0:02:08.9]} 18... Rg8 {[%clk 0:01:34.1]} 19. Ne5 {[%clk
0:01:56.8]} 19... Qe8 {[%clk 0:01:28.1]} 20. h4 {[%clk 0:01:51.2]} 20... f6
{[%clk 0:01:28]} 21. Nxd7 {[%clk 0:01:50.3]} 21... Qxd7 {[%clk 0:01:28.4]} 22.
h5 {[%clk 0:01:50.5]} 22... h6 {[%clk 0:01:27.1]} 23. Qf4 {[%clk 0:01:40.3]}
23... b6 {[%clk 0:01:25.7]} 24. a4 {[%clk 0:01:36.8]} 24... Ba6 {[%clk
0:01:21.8]} 25. a5 {[%clk 0:01:36.2]} 25... b5 {[%clk 0:01:16.7]} 26. Bb4 {[%clk
0:01:35.8]} 26... Rgd8 {[%clk 0:01:13.5]} 27. g4 {[%clk 0:01:33.9]} 27... Rac8
{[%clk 0:01:11.9]} 28. Qg3 {[%clk 0:01:33.6]} 28... Re8 {[%clk 0:01:04.1]} 29.
f4 {[%clk 0:01:33.5]} 29... Qf7 {[%clk 0:01:04.6]} 30. c3 {[%clk 0:00:57.5]}
30... Bb7 {[%clk 0:01:02.2]} 31. Rf1 {[%clk 0:00:56.1]} 31... a6 {[%clk
0:00:59]} 32. Kf2 {[%clk 0:00:51.8]} 32... Qc7 {[%clk 0:00:50.2]} 33. Ke2 {[%clk
0:00:49.3]} 33... Rcd8 {[%clk 0:00:42.2]} 34. Kd2 {[%clk 0:00:48.9]} 34... Qf7
{[%clk 0:00:41.3]} 35. Rh1 {[%clk 0:00:41.7]} 35... e5 {[%clk 0:00:37.1]} 36. f5
{[%clk 0:00:39.7]} 36... exd4 {[%clk 0:00:36.5]} 37. exd4 {[%clk 0:00:40.6]}
37... Re4 {[%clk 0:00:36.5]} 38. Rhe1 {[%clk 0:00:40.4]} 38... Rde8 {[%clk
0:00:37]} 39. Rxe4 {[%clk 0:00:38.5]} 39... dxe4 {[%clk 0:00:37.9]} 40. Ke3
{[%clk 0:00:38.7]} 40... Qd7 {[%clk 0:00:35.8]} 41. Rf1 {[%clk 0:00:34.5]} 41...
Rd8 {[%clk 0:00:33.8]} 42. Qf4 {[%clk 0:00:33]} 42... Qc6 {[%clk 0:00:33.7]} 43.
Qg3 {[%clk 0:00:31.8]} 43... Bc8 {[%clk 0:00:32]} 44. Qf4 {[%clk 0:00:31.4]}
44... Re8 {[%clk 0:00:32.5]} 45. Qd6 {[%clk 0:00:28.8]} 45... Qb7 {[%clk
0:00:30.3]} 46. Qb6 {[%clk 0:00:25.6]} 46... Qf7 {[%clk 0:00:28.7]} 47. Qd6
{[%clk 0:00:24.3]} 47... Bb7 {[%clk 0:00:28.6]} 48. Qf4 {[%clk 0:00:23.9]} 48...
Rd8 {[%clk 0:00:27.5]} 49. Rd1 {[%clk 0:00:23.6]} 49... Qd5 {[%clk 0:00:26.7]}
50. Rd2 {[%clk 0:00:23.8]} 50... Kg8 {[%clk 0:00:26.8]} 51. Rd1 {[%clk 0:00:24]}
51... Kf7 {[%clk 0:00:26.5]} 52. Rd2 {[%clk 0:00:24.5]} 52... Ke8 {[%clk
0:00:26.4]} 53. Qc7 {[%clk 0:00:21.6]} 53... Qd7 {[%clk 0:00:25.6]} 54. Qc5
{[%clk 0:00:20.6]} 54... Kf7 {[%clk 0:00:23.7]} 55. Qb6 {[%clk 0:00:19.6]} 55...
Rc8 {[%clk 0:00:23.3]} 56. Qd6 {[%clk 0:00:19.2]} 56... Qe8 {[%clk 0:00:19.7]}
57. d5 {[%clk 0:00:19.4]} 57... Kg8 {[%clk 0:00:14.7]} 58. Qe6+ {[%clk
0:00:19.4]} 58... Kh7 {[%clk 0:00:14.3]} 59. d6 {[%clk 0:00:19.5]} 59... Qd8
{[%clk 0:00:11.7]} 60. d7 {[%clk 0:00:19.3]} 60... Ra8 {[%clk 0:00:10.7]} 61.
Be7 {[%clk 0:00:17.8]} 61... Qxa5 {[%clk 0:00:11]} 62. d8=Q {[%clk 0:00:16.6]}
62... Qxc3+ {[%clk 0:00:11.1]} 63. Ke2 {[%clk 0:00:15.6]} 63... Rxd8 {[%clk
0:00:11.6]} 64. Rxd8 {[%clk 0:00:15.5]} 64... Qc2+ {[%clk 0:00:12]} 65. Ke1
{[%clk 0:00:15.5]} 65... Qc3+ {[%clk 0:00:12.7]} 66. Ke2 {[%clk 0:00:15.6]}
66... Qf3+ {[%clk 0:00:13.3]} 67. Ke1 {[%clk 0:00:15.8]} 67... e3 {[%clk
0:00:14.2]} 68. Qg8# {[%clk 0:00:15.5]} 1-0

[Event "*** Titled Tuesday Blitz"]
[Site "Chess.com"]
[Date "2020.10.20"]
[Round "3"]
[White "PLAYER_2006_M"]
[Black "abhidabhi"]
[Result "0-1"]
[WhiteElo "2521"]
[BlackElo "2804"]
[TimeControl "180+1"]
[EndTime "10:30:07 PDT"]
[Termination "abhidabhi won on time"]

1. d4 {[%clk 0:03:00.9]} 1... Nf6 {[%clk 0:02:59.5]} 2. Nc3 {[%clk 0:03:01]}
2... d5 {[%clk 0:02:59.2]} 3. Bf4 {[%clk 0:03:00.8]} 3... g6 {[%clk 0:02:58.6]}
4. Nf3 {[%clk 0:02:58.4]} 4... Bg7 {[%clk 0:02:58.7]} 5. Qd2 {[%clk 0:02:57.4]}
5... O-O {[%clk 0:02:55.6]} 6. Bh6 {[%clk 0:02:56.6]} 6... c5 {[%clk 0:02:18.8]}
7. Bxg7 {[%clk 0:02:53.1]} 7... Kxg7 {[%clk 0:02:17.6]} 8. e3 {[%clk 0:02:50.9]}
8... cxd4 {[%clk 0:02:12.8]} 9. exd4 {[%clk 0:02:50.1]} 9... Bf5 {[%clk
0:02:10.3]} 10. Ne5 {[%clk 0:02:45.8]} 10... Nc6 {[%clk 0:02:08.9]} 11. Bb5
{[%clk 0:02:36]} 11... Rc8 {[%clk 0:02:07.8]} 12. Bxc6 {[%clk 0:02:34.5]} 12...
bxc6 {[%clk 0:02:07.6]} 13. Na4 {[%clk 0:02:02.9]} 13... Ne4 {[%clk 0:02:06]}
14. Qd1 {[%clk 0:02:02.5]} 14... c5 {[%clk 0:01:54.8]} 15. f3 {[%clk 0:01:54.9]}
15... Qa5+ {[%clk 0:01:26.5]} 16. c3 {[%clk 0:01:52.7]} 16... cxd4 {[%clk
0:01:21.6]} 17. fxe4 {[%clk 0:01:38.5]} 17... dxe4 {[%clk 0:01:19.7]} 18. Qxd4
{[%clk 0:01:03.2]} 18... Rfd8 {[%clk 0:01:18.2]} 19. Nc6+ {[%clk 0:00:43.2]}
19... Rxd4 {[%clk 0:01:17.4]} 20. Nxa5 {[%clk 0:00:44.1]} 20... Rxa4 {[%clk
0:01:17.8]} 21. Nb3 {[%clk 0:00:44.8]} 21... e5 {[%clk 0:00:56.1]} 22. Kf2
{[%clk 0:00:32.3]} 22... Be6 {[%clk 0:00:55.6]} 23. Rhd1 {[%clk 0:00:28.2]}
23... Rc6 {[%clk 0:00:35.6]} 24. Nd2 {[%clk 0:00:18.7]} 24... f5 {[%clk
0:00:31.9]} 25. b3 {[%clk 0:00:17.5]} 25... Ra3 {[%clk 0:00:31.9]} 26. c4 {[%clk
0:00:17.1]} 26... Rca6 {[%clk 0:00:30.5]} 27. Ke3 {[%clk 0:00:11.1]} 27... Rxa2
{[%clk 0:00:30.7]} 28. Rxa2 {[%clk 0:00:12]} 28... Rxa2 {[%clk 0:00:31.3]} 29.
Rc1 {[%clk 0:00:12.4]} 29... f4+ {[%clk 0:00:28.5]} 30. Kxe4 {[%clk 0:00:10.3]}
30... Rxd2 {[%clk 0:00:28.5]} 31. Kxe5 {[%clk 0:00:11.2]} 31... Bf5 {[%clk
0:00:28.6]} 32. Kxf4 {[%clk 0:00:10.7]} 32... Rxg2 {[%clk 0:00:28.9]} 33. c5
{[%clk 0:00:11.4]} 33... Rxh2 {[%clk 0:00:29.1]} 34. c6 {[%clk 0:00:11.7]} 34...
Rh4+ {[%clk 0:00:27.5]} 35. Ke5 {[%clk 0:00:11.9]} 35... Rb4 {[%clk 0:00:27.1]}
36. Kd6 {[%clk 0:00:12.8]} 36... Rxb3 {[%clk 0:00:24.8]} 37. c7 {[%clk
0:00:12.5]} 37... h5 {[%clk 0:00:23.5]} 38. Rc5 {[%clk 0:00:12.4]} 38... Bc8
{[%clk 0:00:21.9]} 39. Ke7 {[%clk 0:00:07.3]} 39... Rd3 {[%clk 0:00:21.7]} 40.
Ke8 {[%clk 0:00:03.6]} 40... Rd7 {[%clk 0:00:20.1]} 41. Rc3 {[%clk 0:00:01.3]}
41... Kh6 {[%clk 0:00:18.8]} 42. Rc5 {[%clk 0:00:01.1]} 42... h4 {[%clk
0:00:19]} 43. Rc3 {[%clk 0:00:01.7]} 43... g5 {[%clk 0:00:17.9]} 44. Rc6+ {[%clk
0:00:02]} 44... Kh5 {[%clk 0:00:17.8]} 45. Rc4 {[%clk 0:00:02.4]} 45... h3
{[%clk 0:00:17.4]} 46. Rc3 {[%clk 0:00:01.8]} 46... Kh4 {[%clk 0:00:17.5]} 47.
Rc4+ {[%clk 0:00:01.6]} 47... g4 {[%clk 0:00:17.9]} 48. Rc2 {[%clk 0:00:02.5]}
48... g3 {[%clk 0:00:12.8]} 49. Rc4+ {[%clk 0:00:02.7]} 49... Kg5 {[%clk
0:00:13.3]} 50. Rc5+ {[%clk 0:00:03.6]} 50... Kf4 {[%clk 0:00:13.2]} 51. Rc4+
{[%clk 0:00:04.2]} 51... Ke3 {[%clk 0:00:12.9]} 52. Rc3+ {[%clk 0:00:04.7]}
52... Kf4 {[%clk 0:00:13]} 53. Rc4+ {[%clk 0:00:04.9]} 53... Ke5 {[%clk
0:00:13.5]} 54. Rc5+ {[%clk 0:00:04.8]} 54... Kd6 {[%clk 0:00:13.8]} 55. Rg5
{[%clk 0:00:01.9]} 55... g2 {[%clk 0:00:13.5]} 56. Rg6+ {[%clk 0:00:02.5]} 56...
Kxc7 {[%clk 0:00:13.7]} 57. Rh6 {[%clk 0:00:01.5]} 57... g1=Q {[%clk 0:00:12.8]}
0-1

[Event "*** Titled Tuesday Blitz"]
[Site "Chess.com"]
[Date "2020.10.20"]
[Round "3"]
[White "PriSachu"]
[Black "Msb2"]
[Result "0-1"]
[WhiteElo "2436"]
[BlackElo "2917"]
[TimeControl "180+1"]
[EndTime "10:30:09 PDT"]
[Termination "Msb2 won on time"]

1. e4 {[%clk 0:03:00.9]} 1... e6 {[%clk 0:02:58.7]} 2. d4 {[%clk 0:02:59]} 2...
d5 {[%clk 0:02:57.9]} 3. Nc3 {[%clk 0:02:59.4]} 3... Nf6 {[%clk 0:02:58.1]} 4.
e5 {[%clk 0:02:57.2]} 4... Nfd7 {[%clk 0:02:58.4]} 5. f4 {[%clk 0:02:57.5]} 5...
c5 {[%clk 0:02:59.1]} 6. Nf3 {[%clk 0:02:57.8]} 6... Nc6 {[%clk 0:03:00]} 7. Be3
{[%clk 0:02:58]} 7... a6 {[%clk 0:03:00.9]} 8. Qd2 {[%clk 0:02:57.4]} 8... b5
{[%clk 0:02:59.8]} 9. dxc5 {[%clk 0:02:54]} 9... Bxc5 {[%clk 0:03:00.7]} 10. Bd3
{[%clk 0:02:50.4]} 10... Qb6 {[%clk 0:02:59.8]} 11. Bf2 {[%clk 0:02:50.5]} 11...
h6 {[%clk 0:02:59.9]} 12. O-O {[%clk 0:02:43.6]} 12... Bb7 {[%clk 0:02:58.7]}
13. Rae1 {[%clk 0:02:42.4]} 13... Bxf2+ {[%clk 0:02:56.8]} 14. Rxf2 {[%clk
0:02:39.8]} 14... Nc5 {[%clk 0:02:52.6]} 15. Nd1 {[%clk 0:02:09.9]} 15... Rd8
{[%clk 0:02:51]} 16. f5 {[%clk 0:01:59.5]} 16... Ne4 {[%clk 0:02:47.9]} 17. Qf4
{[%clk 0:01:49.3]} 17... Nxf2 {[%clk 0:02:42.9]} 18. Nxf2 {[%clk 0:01:49.3]}
18... exf5 {[%clk 0:02:43.1]} 19. e6 {[%clk 0:01:40.9]} 19... Ne7 {[%clk
0:02:23.5]} 20. exf7+ {[%clk 0:01:15]} 20... Kxf7 {[%clk 0:02:24.4]} 21. Ne5+
{[%clk 0:01:13.6]} 21... Kg8 {[%clk 0:02:23.9]} 22. Qh4 {[%clk 0:00:59.7]} 22...
g5 {[%clk 0:02:20.5]} 23. Qh5 {[%clk 0:00:57.7]} 23... Rh7 {[%clk 0:02:19.8]}
24. Ng4 {[%clk 0:00:51.4]} 24... Qd6 {[%clk 0:01:08.4]} 25. h4 {[%clk
0:00:45.4]} 25... Rf8 {[%clk 0:00:53.9]} 26. hxg5 {[%clk 0:00:17.4]} 26... hxg5
{[%clk 0:00:54.3]} 27. Qxg5+ {[%clk 0:00:16.9]} 27... Rg7 {[%clk 0:00:39.9]} 28.
Nh6+ {[%clk 0:00:16.8]} 28... Kh7 {[%clk 0:00:40.3]} 29. Nxf5 {[%clk 0:00:12.5]}
29... Nxf5 {[%clk 0:00:15]} 30. Bxf5+ {[%clk 0:00:11.7]} 30... Kg8 {[%clk
0:00:15.9]} 31. Be6+ {[%clk 0:00:10]} 31... Qxe6 {[%clk 0:00:16.4]} 32. Qxg7+
{[%clk 0:00:09.3]} 32... Kxg7 {[%clk 0:00:17.3]} 33. Rxe6 {[%clk 0:00:09.5]}
33... Rf7 {[%clk 0:00:18.2]} 34. Rb6 {[%clk 0:00:08.5]} 34... d4 {[%clk
0:00:18.5]} 35. Nd3 {[%clk 0:00:08.8]} 35... Rc7 {[%clk 0:00:17.1]} 36. Nc5
{[%clk 0:00:03.5]} 36... Bc8 {[%clk 0:00:12.8]} 37. Ne6+ {[%clk 0:00:02.7]}
37... Bxe6 {[%clk 0:00:13.1]} 38. Rxe6 {[%clk 0:00:03.3]} 38... Rxc2 {[%clk
0:00:13.8]} 39. Rxa6 {[%clk 0:00:03.6]} 39... d3 {[%clk 0:00:14]} 40. Rd6 {[%clk
0:00:03.7]} 40... d2 {[%clk 0:00:14.2]} 41. Kh2 {[%clk 0:00:04.2]} 41... Rxb2
{[%clk 0:00:14.8]} 42. Kg3 {[%clk 0:00:04.1]} 42... Kf7 {[%clk 0:00:15.1]} 43.
Kf3 {[%clk 0:00:04]} 43... Ke7 {[%clk 0:00:15.6]} 44. Rd4 {[%clk 0:00:03.1]}
44... Rxa2 {[%clk 0:00:13.8]} 45. Ke3 {[%clk 0:00:03.4]} 45... Ke6 {[%clk
0:00:12.1]} 46. Rxd2 {[%clk 0:00:03.2]} 46... Ra3+ {[%clk 0:00:13]} 47. Rd3
{[%clk 0:00:02.8]} 47... Ra8 {[%clk 0:00:11.9]} 48. Rb3 {[%clk 0:00:02.7]} 48...
Rb8 {[%clk 0:00:11.8]} 49. Kd4 {[%clk 0:00:03.1]} 49... Kd6 {[%clk 0:00:12.3]}
50. g4 {[%clk 0:00:03.2]} 50... Kc6 {[%clk 0:00:12.8]} 51. g5 {[%clk 0:00:03.4]}
51... Re8 {[%clk 0:00:06.9]} 52. g6 {[%clk 0:00:02.7]} 52... Rd8+ {[%clk
0:00:03.9]} 53. Ke5 {[%clk 0:00:02.4]} 53... Re8+ {[%clk 0:00:04.8]} 54. Kf6
{[%clk 0:00:02.5]} 54... Re1 {[%clk 0:00:05.7]} 55. g7 {[%clk 0:00:02.4]} 55...
Rf1+ {[%clk 0:00:06]} 56. Ke7 {[%clk 0:00:01.4]} 56... Rg1 {[%clk 0:00:06.9]}
57. Kf7 {[%clk 0:00:01.3]} 57... Rf1+ {[%clk 0:00:07.8]} 58. Ke7 {[%clk
0:00:01.5]} 58... Rg1 {[%clk 0:00:08.7]} 59. Kf7 {[%clk 0:00:01.8]} 59... Kc5
{[%clk 0:00:09.6]} 60. Ke7 {[%clk 0:00:02.1]} 60... Rf1 {[%clk 0:00:10.3]} 61.
g8=Q {[%clk 0:00:01.1]} 61... Re1+ {[%clk 0:00:11.2]} 0-1